Cogmind - Beta 13 @@@ ROGUE MODE // 2024.05.23 @ 07:49:09 Player: Haldron Result: Destroyed by 4D-UEO(R) with Subdweller Beam Cannon Performance ------------- Evolutions (0) 0 Regions Visited (2) 400 Robots Destroyed (29) 145 Value Destroyed (701) 701 Prototype IDs (10) 200 Alien Tech Used (0) 0 Bonus (-30) -30 TOTAL SCORE: 1416 Bonus ------- Friendly Fire -30 Cogmind --------- Core Integrity 0/250 Matter 174/300 Energy 248/250 System Corruption 0% Temperature Cool (9) Movement Core (600) Ox11 Location -10/Subcaves Parts ------- > --- POWER (1) -------- Ion Engine > --- PROPULSION (2) --- (None) > --- UTILITY (2) ------ Large Storage Unit Seismic Detector > --- WEAPON (2) ------- Subdweller Beam Cannon > --- INVENTORY (15) --- Subdweller Power Source Subdweller Power Source Subdweller Monowheel Improved Heat Sink Sensor Array Improved Targeting Computer Makeshift Laser Subdweller Beam Cannon Powered Cannon Barrage Gun Improved Light Cannon Multitool Flamer Heavy Hammer Peak State ------------ > --- POWER ------------ Subdweller Power Source > --- PROPULSION ------- Light Treads Light Treads > --- UTILITY ---------- Large Storage Unit Seismic Detector > --- WEAPON ----------- Makeshift Laser Barrage Gun > --- INVENTORY -------- Ion Engine Ion Engine Compact Wheel Improved Heat Sink Sensor Array Improved Targeting Computer Powered Cannon Improved Light Cannon Improved Light Cannon Grenade Launcher Multitool Flamer Flamer Heavy Hammer [Rating: 16] Favorites ----------- Power Ion Engine Engine Ion Engine Propulsion Light Treads Treads Light Treads Wheel Subdweller Monowheel Utility Seismic Detector Device Seismic Detector Storage Large Storage Unit Weapon Improved Light Cannon Energy Gun Particle Gun Energy Cannon Subdweller Beam Cannon Ballistic Gun Barrage Gun Ballistic Cannon Improved Light Cannon Launcher Subdweller Shrapnel Launcher Special Weapon Flamer Impact Weapon Heavy Hammer Build | -11 -10 -10 ------- Run | Yrd Mat Sub Slots Evolved . | . . . Power . | . . . Propulsion . | . . . Utility . | . . . Weapon . | . . . Parts Attached 34 | 7 6 21 Power 4 | 1 . 3 Engine 4 | 1 . 3 Core . | . . . Reactor . | . . . Propulsion 4 | 2 . 2 Treads 2 | 2 . . Leg . | . . . Wheel 2 | . . 2 Hover . | . . . Flight . | . . . Utility 5 | 2 1 2 Device 3 | 1 . 2 Storage 2 | 1 1 . Processor . | . . . Hackware . | . . . Protection . | . . . Artifact . | . . . Weapon 21 | 2 5 14 Energy Gun 5 | 1 2 2 Energy Cannon 1 | . . 1 Ballistic Gun 2 | 1 . 1 Ballistic Cannon 7 | . 3 4 Launcher 2 | . . 2 Special Weapon 2 | . . 2 Impact Weapon 2 | . . 2 Slashing Weapon . | . . . Piercing Weapon . | . . . Special Melee Weapon . | . . . Unidentified Prototypes . | . . . Parts Lost 5 | . . 5 Power 1 | . . 1 Propulsion 3 | . . 3 Utility . | . . . Weapon 1 | . . 1 Highest Loss Streak 2 | . . 2 To Critical Strikes . | . . . Average Slot Usage (%) 97 | . 99 96 Engine 13 | . 14 13 Treads 25 | . 28 23 Device 14 | . 14 14 Storage 14 | . 14 14 Energy Gun 10 | . 8 10 Energy Cannon 1 | . . 2 Ballistic Gun 2 | . . 3 Ballistic Cannon 12 | . 18 9 Naked Turns . | . . . Heaviest Build 38 | 13 34 38 Greatest Support 40 | 40 40 40 Greatest Overweight (x) 12 | . . 12 Average Overweight (x) . | . . . Largest Inventory Capacity 15 | 8 15 15 Average Capacity 14 | 7 13 15 Most Carried 15 | 4 15 15 Average Carried 13 | 2 12 14 Final Capacity 15 | 8 15 15 Final Carried 15 | 4 15 15 Class Distribution -------------------- 100% | Mutant Dominant Class ---------------- Mutant | -10/Materials Mutant | -10/Subcaves Resources | -11 -10 -10 ----------- Run | Yrd Mat Sub Matter Collected 880 | 281 232 367 Remotely . | . . . Salvage Created 729 | 132 379 218 Parts 46 | 10 17 19 Haulers Intercepted . | . . . Recyclers Shooed 2 | . 2 . Parts Field Recycled . | . . . Retrieved Matter . | . . . Parts Self-Destructed 12 | . . 12 Prevented . | . . . Kills | -11 -10 -10 ------- Run | Yrd Mat Sub Combat Hostiles Destroyed 18 | . 6 12 Guns 4 | . 2 2 Cannons 9 | . 4 5 AOE 5 | . . 5 Classes Destroyed 8 | 2 2 4 Tunneler 4 | 4 . . Recycler 4 | 1 3 . Turret 2 | . . 2 Watcher 1 | . 1 . Swarmer 5 | . . 5 Grunt 6 | . 6 . Artisan 1 | . . 1 Subdweller 7 | . . 7 Best Kill Streak 7 | 2 4 7 Combat Bots Only 5 | . 3 5 Max Kills in Single Turn 2 | 1 1 2 Gunslinging . | . . . Exploded 2 | . . 2 Melee . | . . . Uniques/NPCs Destroyed . | . . . Combat | -11 -10 -10 -------- Run | Yrd Mat Sub Hostile Shots Fired 100 | . 17 83 Missed 38 | . 5 33 Damage Taken 1158 | . 154 1004 Core 256 | . 24 232 Absorbed by Shields . | . . . Regen/Repaired (Parts) 37 | . 37 . Core Remaining (%) 100 | 100 . . Volleys Fired 87 | 11 25 51 Largest 2 | 2 2 2 Hottest 119 | 60 104 119 Shots Fired 147 | 22 50 75 Gun 54 | 22 7 25 Cannon 82 | . 43 39 Launcher 7 | . . 7 Special 4 | . . 4 Kinetic 106 | 11 43 52 Thermal 39 | 11 7 21 Explosive 2 | . . 2 Electromagnetic . | . . . Robot Hit Streak 8 | 8 6 7 Robot Miss Streak 4 | 1 3 4 Penetration Max . | . . . Secondary Targets . | . . . Shots Hit Robots 89 | 15 29 45 Core Hits 45 | 9 13 23 Critical Kills . | . . . Critical Parts Destroyed . | . . . Critical Strikes 1 | . 1 . Blast 1 | . 1 . Melee Attacks 5 | . . 5 Impact 5 | . . 5 Slashing . | . . . Piercing . | . . . Sneak Attacks . | . . . Combat Hostiles . | . . . Follow-up Attacks . | . . . Damage Inflicted 1967 | 140 558 1269 Guns 419 | 140 64 215 Cannons 1039 | . 494 545 Explosions 499 | . . 499 Melee . | . . . Ramming . | . . . Kinetic 1476 | 45 494 937 Thermal 322 | 95 64 163 Explosive 169 | . . 169 Electromagnetic . | . . . Impact . | . . . Slashing . | . . . Piercing . | . . . Highest Corruption . | . . . Average Corruption . | . . . Corruption Purged . | . . . Corruption Blocked . | . . . Overload Shots . | . . . Overflow Damage 26 | . 14 12 Projectiles 14 | . 14 . Explosions 12 | . . 12 Melee . | . . . Knockbacks 7 | . 3 4 Impact . | . . . Kinetic 7 | . 3 4 Secondary . | . . . Self-Inflicted Damage 48 | . . 48 Shots 1 | . . 1 Rammed . | . . . Targets Rammed . | . . . Kicked . | . . . Crushed . | . . . Highest Temperature 234 | 40 234 18 Average Temperature 72 | 19 90 5 Received Heat Transfer 288 | . 90 198 Siege Activations . | . . . Robots Corrupted . | . . . Combat Hostiles . | . . . Parts Fried . | . . . Impact Corruptions . | . . . Robots Melted . | . . . Combat Hostiles . | . . . Parts Melted 1 | . . 1 Heat Transferred 749 | 225 148 376 Parts Sabotaged . | . . . Parts Stolen . | . . . Parts Stripped . | . . . Power Chain Reactions . | . . . Alert | -11 -10 -10 ------- Run | Yrd Mat Sub Peak Influence 207 | 25 207 . Initial 16 | . 16 . Average 64 | 9 74 . Maximum Alert Level 1 | . 1 . Low Security (%) 99 | 100 99 . Level 1 . | . . . Level 2 . | . . . Level 3 . | . . . Level 4 . | . . . Level 5 . | . . . High Security . | . . . Max Security . | . . . Squads Dispatched 1 | . 1 . Investigation . | . . . Extermination . | . . . Reinforcement 1 | . 1 . Assault . | . . . Garrison . | . . . Intercept . | . . . Searches Triggered . | . . . Construction Impeded . | . . . Haulers Reinforced . | . . . Active Scanning Responses . | . . . Cargo Convoy Interrupts . | . . . Stealth | -11 -10 -10 --------- Run | Yrd Mat Sub Distress Signals 1 | . 1 . Communications Jammed . | . . . Distress Signals . | . . . Times Spotted 38 | . 10 28 Peak Tracking Total 6 | . 4 6 Tactical Retreats 2 | . 1 1 Traps | -11 -10 -10 ------- Run | Yrd Mat Sub Traps Triggered . | . . . Indirectly . | . . . Trap Hack Attempts . | . . . Triggered . | . . . Disarmed . | . . . Reprogrammed . | . . . Reused . | . . . Traps Extracted . | . . . Installed . | . . . Triggered . | . . . Machines | -11 -10 -10 ---------- Run | Yrd Mat Sub Machines Disabled 5 | . . 5 Max in Single Turn 3 | . . 3 Machines Repaired . | . . . Machines Dismantled . | . . . Machines Sabotaged . | . . . Overloaded Fab Kills . | . . . Hacking | -11 -10 -10 --------- Run | Yrd Mat Sub Machines Accessed 3 | . 2 1 Terminals 1 | . 1 . Fabricators . | . . . Repair Stations 1 | . 1 . Recycling Units . | . . . Scanalyzers . | . . . Garrison Access . | . . . Total Hacks 17 | . 8 9 Successful 14 | . 5 9 Failed 3 | . 3 . Catastrophic . | . . . Database Lockouts . | . . . Manual 6 | . 6 . Terminals 6 | . 6 . Fabricators . | . . . Repair Stations 2 | . 2 . Recycling Units . | . . . Scanalyzers . | . . . Garrison Access . | . . . Terminal Hacks 9 | . . 9 Record 8 | . . 8 Derelict Proto ID Bank 1 | . . 1 Fabricator Hacks . | . . . Repair Station Hacks 2 | . 2 . Scan Component 1 | . 1 . Repair 1 | . 1 . Recycling Unit Hacks . | . . . Scanalyzer . | . . . Garrison Access Hacks . | . . . Unauthorized Hacks 3 | . 3 . Terminals 3 | . 3 . Track 1 | . 1 . Botnet 1 | . 1 . Operators 1 | . 1 . Fabricators . | . . . Repair Stations . | . . . Recycling Units . | . . . Scanalyzers . | . . . Garrison Access . | . . . Data Cores Recovered . | . . . Used . | . . . Hacking Detections 1 | . 1 . Full Trace Events . | . . . Feedback Events . | . . . Feedback Blocked . | . . . Robot Schematics Acquired . | . . . Robots Built . | . . . Authchips . | . . . Time . | . . . Total Robot Build Rating . | . . . Part Schematics Acquired . | . . . Parts Built . | . . . Authchips . | . . . Time . | . . . Total Part Build Rating . | . . . Parts Repaired 1 | . 1 . Time 32 | . 32 . Parts Recycled . | . . . Recycled Matter . | . . . Retrieved Matter . | . . . Retrieved Components . | . . . Parts Scanalyzed . | . . . Part Schematics Acquired . | . . . Parts Damaged . | . . . Bothacking | -11 -10 -10 ------------ Run | Yrd Mat Sub Used RIF Installer . | . . . Robots Hacked . | . . . Non-combat . | . . . Combat . | . . . Robot Hacks Applied . | . . . Relay Couplers Released . | . . . Fabnet Peak Effective % . | . . . Robots Rewired . | . . . Allies Hacked . | . . . Hacks Repelled . | . . . Allies | -11 -10 -10 -------- Run | Yrd Mat Sub Total Allies . | . . . Largest Group . | . . . Highest-Rated Group . | . . . Highest-Rated Ally . | . . . Total Orders . | . . . Ally Attacks . | . . . Total Damage . | . . . Kills . | . . . Allies Corrupted . | . . . Allies Melted . | . . . Intel | -11 -10 -10 ------- Run | Yrd Mat Sub Robot Analysis Total . | . . . Derelict Logs Recovered 2 | . . 2 Drone Launches . | . . . Drone Recoveries . | . . . Exploration | -11 -10 -10 ------------- Run | Yrd Mat Sub Turns Passed 2955 | 160 842 1953 Spaces Moved 1187 | 75 290 822 Core 27 | 4 . 23 Treads 1042 | 71 290 681 Legs . | . . . Wheels 118 | . . 118 Hover . | . . . Flight . | . . . Fastest Speed 50 | 50 160 120 Average Speed 165 | 154 160 168 Slowest Speed 650 | 160 160 650 Overloaded Moves . | . . . Propulsion Burnouts . | . . . Robots Hopped . | . . . Cave-ins Triggered . | . . . Exploration Rate (%) 23 | 6 28 37 Regions Visited 2 Branch Regions 1 Pre-discovered Areas 1 | . . 1 Known Exits Taken . | . . . Unknown Exits Taken 2 | 1 1 . Scrap Searched . | . . . Spaces Dug 3 | . . 3 Terrain Destroyed 77 | . 1 76 Melee . | . . . Projectile 4 | . 1 3 AOE 73 | . . 73 Terrain Rammed . | . . . Walls Destroyed . | . . . Machines Disabled . | . . . Actions | -11 -10 -10 --------- Run | Yrd Mat Sub Total 2014 | 96 620 1298 Wait 652 | . 275 377 Move 1185 | 74 289 822 Hop . | . . . Pick Up 30 | 4 17 9 Fast Attach 12 | 7 2 3 Attach . | . . . Detach . | . . . Swap 22 | . 4 18 Drop 21 | . 8 13 Fire 87 | 11 25 51 Melee 5 | . . 5 Ram . | . . . Kick . | . . . Crush . | . . . Escape Stasis . | . . . Rewire . | . . . Trap . | . . . Miscellaneous . | . . . Route ------- -11/Scrapyard -10/Materials -10/Subcaves (discovered 1 exit: [*Rec]) History --------- Turn | Location | Event 8 | -11/Scrapyard | Discovered new exit (range 15) 161 | -11/Scrapyard | Entered Materials 300 | -10/Materials | Build established: Mutant 678 | -10/Materials | Repaired Particle Gun 981 | -10/Materials | Discovered new exit (range 3) 1003 | -10/Materials | Entered Subcaves 1048 | -10/Subcaves | Learned location of 2 exits from Materials 1074 | -10/Subcaves | Shifting Twisted Machinery released Sub. Monowheel 1075 | -10/Subcaves | Shifting Twisted Machinery released Flamer 1614 | -10/Subcaves | Ambushed by Subdwellers from Twisted Machinery 1747 | -10/Subcaves | Visited 4L-MR0's lab 1784 | -10/Subcaves | Found Powered Cannon 2084 | -10/Subcaves | Shifting Twisted Machinery released Barrage Gun 2086 | -10/Subcaves | Shifting Twisted Machinery released Flamer 2140 | -10/Subcaves | Learned location of Zion (-6) 2538 | -10/Subcaves | Ambushed by Subdweller buried in earth 2759 | -10/Subcaves | Discovered new exit (range 14) 2768 | -10/Subcaves | Ambushed by Subdweller buried in earth 2773 | -10/Subcaves | Core integrity fell below 50% 2951 | -10/Subcaves | Core integrity fell below 20% 2956 | -10/Subcaves | Destroyed by 4D-UEO(R) with Subdweller Beam Cannon Last Messages --------------- 02764_ S-10 Pest destroyed. 02764_ Lgt. Treads destroyed. 02766_ Machine disabled. 02768_ Autobeam Turret destroyed. 02769_ GR-TGY(R): "ARGHSUB!" 02770_ Flight Unit fries itself beyond repair. 02770_ Com. Wheel destroyed. 02770_ Autobeam Turret destroyed. 02772_ S-10 Pest destroyed. 02772_ Destroyed Lgt. Ion Engine. 02772_ S-10 Pest destroyed. 02774_ Autobeam fries itself beyond repair. 02774_ Sub. Shrapnel Launcher shoots sparks and powers down. 02777_ GR-TGY(R) destroyed. 02778_ Lgt. Assault Rifle fries itself beyond repair. 02783_ Flight Unit fries itself beyond repair. 02852_ Dropped Broken Sub. Shrapnel Launcher. 02852_ Acquired Sub. Beam Cannon. 02853_ Acquired 26 matter. 02956_ Flamer destroyed. Map ----- +----------------------------------------------------+ | ## # ## ## ##### "" """" " # | | #### ###### ## ##" ## | | ####??##### # #?# #" ###? | | ##?????# # ##??# " #??# | | ###?## ## #?## #?## | | ## ##### ### ## ## #?# | | #?### ## # ## ## | | #?# " #"" " ## | | ###?# ## ####" ## | | ##???###### ## # "" #???## #### | | ####??????### ## ###"" ####?##### | | ## #????????### ##?# "" "###### #????# # | | #### ] #?????????## ##??# """"####" ###### # | | ?### #????????## ##???#####"""""" """""## | | ## &####?????#### *#???????# " "## | | # & ####?????# = ###????#### " ## | | # ## ####?## &=#??????# #] "" | | ## ### ]!#??????# "" "" | | ?### ### ##??????# "< & " | | ???## # ## #####???# &! "####"" # | | ???##= ## # #???# ##??##" ## | | ???# ### ## ## ####?# ####????####? | | ???# ########; ## ### #???????????? | | ???## # # #### ## ;# ##???????????? | | ???# # """""" #????????????? | | ???# ! " R@ # # ##????????????? | | ???###### ## """ =" ;########?????????????? | | ????????######### """"""""" #????????????????????? | | ????????????????# ########" #???????????????????? | | ????????????????###??????#####???????????????????? | | ?????????????????????????????????????????????????? | | ?????????????????????????????????????????????????? | | ?????????????????????????????????????????????????? | | ?????????????????????????????????????????????????? | | ?????????????????????????????????????????????????? | | ?????????????????????????????????????????????????? | | ?????????????????????????????????????????????????? | | ?????????????????????????????????????????????????? | | ?????????????????????????????????????????????????? | | ?????????????????????????????????????????????????? | | ?????????????????????????????????????????????????? | | ?????????????????????????????????????????????????? | | ?????????????????????????????????????????????????? | | ?????????????????????????????????????????????????? | | | | | | | | | | | | | +----------------------------------------------------+ Best States ------------- Heat Dissipation 39 Energy Generation 15 Energy Capacity 250 Matter Stores 300 Matter Capacity 300 Sight Range 16 Terrain Scan Density 10 Evasion (%) 40 Recoil Reduction 2 Item Schematics ----------------- None Robot Schematics ------------------ None Fabricated ------------ Nothing Alien Tech Used ----------------- None Achievements -------------- None Challenges ------------ None Game ------ Seed GuidedBiocellMegatreads Manual? 0 Play Time 00:30:04 Cumulative 167.8 hours Start 2024.05.23 @ 07:19:53 End 2024.05.23 @ 07:49:09 Sessions 1 Manual Loads 0 Difficulty Rogue Special Mode None Game No. 47 Rogue 42 Adventurer 4 Explorer 1 Win Type - Total 2 Types 1/0/1/0/0/0/0/0/0 Lore% 38 Gallery% 58 Achievement% 41 Wizard Run 0 Options --------- Layout 0 ASCII 0 Keyboard 0 Movement Mouse Keybinds 0 Fullscreen 1 Font 24/Smallcaps Map View 76x50 Zoom Use 0% Tactical HUD 1 Map Filters NONE Filters NONE Steam X RUN: d3acdb8c-878d-4588-aa61-c70371f5d837